[Event "Titled Tuesday Blitz July 4 Late 2023"]
[White "Biliy, Vadim"]
[Black "Lutz, Igor Oscar"]
[WhiteFideId "14114127"]
[BlackFideId "2110806"]
[WhiteElo "2205"]
[BlackElo "1993"]
[Result "1-0"]
[Round "11"]
[TimeControl "180+2"]
[Date "2023.07.04"]
[WhiteClock "0:00:22"]
[BlackClock "0:00:00"]
[Board "108"]

1. d4 {[%clk 0:03:00]}  d5 {[%clk 0:02:59]} 2. Nf3 {[%clk 0:03:00]}  c6 {[%clk 0:03:00]} 3. e3 {[%clk 0:03:00]}  Nf6 {[%clk 0:03:00]} 4. h3 {[%clk 0:02:59]}  e6 {[%clk 0:03:01]} 5. Bd3 {[%clk 0:02:58]}  Bd6 {[%clk 0:03:01]} 6. O-O {[%clk 0:02:58]}  O-O {[%clk 0:03:01]} 7. Nc3 {[%clk 0:02:52]}  Nbd7 {[%clk 0:03:01]} 8. Re1 {[%clk 0:02:48]}  e5 {[%clk 0:03:01]} 9. e4 {[%clk 0:02:41]}  exd4 {[%clk 0:02:49]} 10. Nxd4 {[%clk 0:02:38]}  dxe4 {[%clk 0:02:47]} 11. Nxe4 {[%clk 0:02:32]}  Nxe4 {[%clk 0:02:24]} 12. Bxe4 {[%clk 0:02:24]}  Nf6 {[%clk 0:02:23]} 13. Bg5 {[%clk 0:02:21]}  Be7 {[%clk 0:02:07]} 14. Nf5 {[%clk 0:02:17]}  Bxf5 {[%clk 0:02:06]} 15. Bxf5 {[%clk 0:02:16]}  h6 {[%clk 0:02:00]} 16. Bh4 {[%clk 0:02:09]}  Re8 {[%clk 0:01:35]} 17. Qf3 {[%clk 0:01:54]}  Nd5 {[%clk 0:01:29]} 18. Bg3 {[%clk 0:01:43]}  Qb6 {[%clk 0:01:10]} 19. c4 {[%clk 0:01:39]}  Nf6 {[%clk 0:01:02]} 20. b3 {[%clk 0:01:36]}  Bb4 {[%clk 0:00:56]} 21. Rxe8+ {[%clk 0:01:22]}  Rxe8 {[%clk 0:00:57]} 22. Rd1 {[%clk 0:01:20]}  Rd8 {[%clk 0:00:51]} 23. Be5 {[%clk 0:01:07]}  Rxd1+ {[%clk 0:00:48]} 24. Qxd1 {[%clk 0:01:06]}  Be7 {[%clk 0:00:43]} 25. Qd4 {[%clk 0:01:00]}  Bc5 {[%clk 0:00:31]} 26. Qh4 {[%clk 0:00:55]}  Nh7 {[%clk 0:00:20]} 27. Qg4 {[%clk 0:00:46]}  Bxf2+ {[%clk 0:00:17]} 28. Kf1 {[%clk 0:00:40]}  Ng5 {[%clk 0:00:16]} 29. h4 {[%clk 0:00:34]}  Qe3 {[%clk 0:00:15]} 30. Qe2 {[%clk 0:00:27]}  Qxe2+ {[%clk 0:00:02]} 31. Kxe2 {[%clk 0:00:27]}  f6 {[%clk 0:00:00]} 32. Kxf2 {[%clk 0:00:22]} 1-0


[Site "https://www.chess.com"]

[Event "Titled Tuesday Blitz July 4 Late 2023"]
[White "Awoki, Daniel Teidi"]
[Black "campochess"]
[WhiteFideId "2100827"]
[WhiteElo "2356"]
[BlackElo "2114"]
[Result "1-0"]
[Round "11"]
[TimeControl "180+2"]
[Date "2023.07.04"]
[WhiteClock "0:01:01"]
[BlackClock "0:00:35"]
[Board "109"]

1. e4 {[%clk 0:03:00]}  c5 {[%clk 0:02:46]} 2. Nf3 {[%clk 0:02:53]}  Nc6 {[%clk 0:02:46]} 3. d4 {[%clk 0:02:52]}  cxd4 {[%clk 0:02:46]} 4. Nxd4 {[%clk 0:02:53]}  e5 {[%clk 0:02:46]} 5. Nb5 {[%clk 0:02:53]}  a6 {[%clk 0:02:46]} 6. Nd6+ {[%clk 0:02:52]}  Bxd6 {[%clk 0:02:46]} 7. Qxd6 {[%clk 0:02:53]}  Qe7 {[%clk 0:02:46]} 8. Qxe7+ {[%clk 0:02:50]}  Ngxe7 {[%clk 0:02:46]} 9. Nc3 {[%clk 0:02:51]}  d5 {[%clk 0:02:46]} 10. Nxd5 {[%clk 0:02:49]}  Nxd5 {[%clk 0:02:43]} 11. exd5 {[%clk 0:02:50]}  Nb4 {[%clk 0:02:43]} 12. Kd1 {[%clk 0:02:35]}  Nxd5 {[%clk 0:02:38]} 13. Bd2 {[%clk 0:02:34]}  O-O {[%clk 0:02:37]} 14. Bd3 {[%clk 0:02:27]}  Be6 {[%clk 0:02:36]} 15. Re1 {[%clk 0:02:27]}  f6 {[%clk 0:02:25]} 16. Ke2 {[%clk 0:02:21]}  Bf7 {[%clk 0:02:21]} 17. Kf1 {[%clk 0:02:20]}  Rad8 {[%clk 0:02:20]} 18. Rad1 {[%clk 0:02:21]}  b5 {[%clk 0:02:04]} 19. b3 {[%clk 0:02:19]}  Kh8 {[%clk 0:02:03]} 20. g3 {[%clk 0:02:18]}  Bg6 {[%clk 0:02:02]} 21. Bxg6 {[%clk 0:02:14]}  hxg6 {[%clk 0:02:02]} 22. Ba5 {[%clk 0:02:10]}  Rc8 {[%clk 0:01:32]} 23. Rxd5 {[%clk 0:01:57]}  Rxc2 {[%clk 0:01:32]} 24. Rd2 {[%clk 0:01:57]}  Rfc8 {[%clk 0:01:31]} 25. Rxc2 {[%clk 0:01:56]}  Rxc2 {[%clk 0:01:31]} 26. Re2 {[%clk 0:01:57]}  Rc1+ {[%clk 0:01:31]} 27. Kg2 {[%clk 0:01:57]}  Kg8 {[%clk 0:01:27]} 28. h4 {[%clk 0:01:58]}  Kf7 {[%clk 0:01:27]} 29. Rd2 {[%clk 0:01:58]}  Ke6 {[%clk 0:01:26]} 30. Bb4 {[%clk 0:01:57]}  Kf5 {[%clk 0:01:22]} 31. Rd6 {[%clk 0:01:42]}  a5 {[%clk 0:01:17]} 32. Bxa5 {[%clk 0:01:41]}  Ra1 {[%clk 0:01:18]} 33. Kf3 {[%clk 0:01:30]}  g5 {[%clk 0:01:10]} 34. hxg5 {[%clk 0:01:29]}  Kxg5 {[%clk 0:01:09]} 35. Rd2 {[%clk 0:01:20]}  Kf5 {[%clk 0:01:09]} 36. Bb4 {[%clk 0:01:16]}  g5 {[%clk 0:01:08]} 37. g4+ {[%clk 0:01:15]}  Kg6 {[%clk 0:01:07]} 38. Rc2 {[%clk 0:01:09]}  Kf7 {[%clk 0:01:02]} 39. Bc3 {[%clk 0:01:09]}  Rd1 {[%clk 0:00:57]} 40. a4 {[%clk 0:01:09]}  b4 {[%clk 0:00:54]} 41. Bxb4 {[%clk 0:01:07]}  Rd3+ {[%clk 0:00:54]} 42. Kg2 {[%clk 0:01:07]}  Rxb3 {[%clk 0:00:54]} 43. Bc5 {[%clk 0:01:06]}  Rb1 {[%clk 0:00:51]} 44. Ra2 {[%clk 0:01:06]}  Rc1 {[%clk 0:00:49]} 45. Bb6 {[%clk 0:01:02]}  Ke6 {[%clk 0:00:44]} 46. a5 {[%clk 0:01:02]}  Rb1 {[%clk 0:00:42]} 47. a6 {[%clk 0:01:01]}  Rxb6 {[%clk 0:00:35]} 48. a7 {[%clk 0:01:01]} 1-0


[Site "https://www.chess.com"]

[Event "Titled Tuesday Blitz July 4 Late 2023"]
[White "Winkels, Marcel"]
[Black "Tqebuchava, Zurab"]
[WhiteFideId "1003887"]
[BlackFideId "13601113"]
[WhiteElo "2078"]
[BlackElo "2057"]
[Result "1-0"]
[Round "11"]
[TimeControl "180+2"]
[Date "2023.07.04"]
[WhiteClock "0:00:53"]
[BlackClock "0:00:00"]
[Board "111"]

1. e4 {[%clk 0:03:00]}  g6 {[%clk 0:03:00]} 2. d4 {[%clk 0:03:00]}  Bg7 {[%clk 0:03:00]} 3. Nc3 {[%clk 0:03:00]}  c6 {[%clk 0:02:58]} 4. Be3 {[%clk 0:03:01]}  d6 {[%clk 0:02:58]} 5. f4 {[%clk 0:03:00]}  b5 {[%clk 0:02:54]} 6. a3 {[%clk 0:02:54]}  a5 {[%clk 0:02:51]} 7. Nf3 {[%clk 0:02:53]}  Bg4 {[%clk 0:02:49]} 8. h3 {[%clk 0:02:52]}  Bxf3 {[%clk 0:02:48]} 9. Qxf3 {[%clk 0:02:52]}  e6 {[%clk 0:02:27]} 10. Bd3 {[%clk 0:02:49]}  d5 {[%clk 0:02:21]} 11. O-O {[%clk 0:02:46]}  Ne7 {[%clk 0:02:14]} 12. e5 {[%clk 0:02:36]}  h5 {[%clk 0:01:53]} 13. g3 {[%clk 0:02:26]}  Qb6 {[%clk 0:01:42]} 14. Ne2 {[%clk 0:02:22]}  Nd7 {[%clk 0:01:38]} 15. b3 {[%clk 0:02:15]}  Kf8 {[%clk 0:01:16]} 16. g4 {[%clk 0:02:02]}  hxg4 {[%clk 0:01:15]} 17. hxg4 {[%clk 0:02:02]}  a4 {[%clk 0:01:07]} 18. f5 {[%clk 0:01:53]}  gxf5 {[%clk 0:00:55]} 19. gxf5 {[%clk 0:01:52]}  exf5 {[%clk 0:00:19]} 20. Bxf5 {[%clk 0:01:46]}  Ke8 {[%clk 0:00:19]} 21. Qg4 {[%clk 0:01:33]}  Nf8 {[%clk 0:00:12]} 22. Rf3 {[%clk 0:01:14]}  Rg8 {[%clk 0:00:10]} 23. Qf4 {[%clk 0:01:06]}  Ra7 {[%clk 0:00:09]} 24. Kf1 {[%clk 0:01:03]}  axb3 {[%clk 0:00:08]} 25. cxb3 {[%clk 0:01:02]}  b4 {[%clk 0:00:07]} 26. a4 {[%clk 0:01:01]}  Qa6 {[%clk 0:00:06]} 27. Bc2 {[%clk 0:00:55]}  Neg6 {[%clk 0:00:00]} 28. Qf5 {[%clk 0:00:53]} 1-0


[Site "https://www.chess.com"]

[Event "Titled Tuesday Blitz July 4 Late 2023"]
[White "Broca Jimenez, Fernando"]
[Black "Burke, Paul"]
[WhiteFideId "5104742"]
[BlackFideId "2605767"]
[WhiteElo "2201"]
[BlackElo "1927"]
[Result "0-1"]
[Round "11"]
[TimeControl "180+2"]
[Date "2023.07.04"]
[WhiteClock "0:00:00"]
[BlackClock "0:00:13"]
[Board "112"]

1. Nf3 {[%clk 0:03:00]}  a6 {[%clk 0:02:59]} 2. b3 {[%clk 0:03:01]}  d6 {[%clk 0:02:59]} 3. Bb2 {[%clk 0:03:00]}  Nd7 {[%clk 0:03:00]} 4. g3 {[%clk 0:03:00]}  Ngf6 {[%clk 0:03:00]} 5. Bg2 {[%clk 0:03:01]}  g6 {[%clk 0:03:00]} 6. O-O {[%clk 0:03:02]}  Bg7 {[%clk 0:03:00]} 7. e4 {[%clk 0:03:01]}  O-O {[%clk 0:02:59]} 8. d3 {[%clk 0:03:01]}  e5 {[%clk 0:03:00]} 9. Nbd2 {[%clk 0:03:01]}  h6 {[%clk 0:02:59]} 10. Re1 {[%clk 0:03:01]}  Kh7 {[%clk 0:02:58]} 11. Nf1 {[%clk 0:03:01]}  Qe7 {[%clk 0:02:49]} 12. Ne3 {[%clk 0:02:59]}  c6 {[%clk 0:02:47]} 13. h3 {[%clk 0:02:58]}  Ng8 {[%clk 0:02:39]} 14. c4 {[%clk 0:02:45]}  f5 {[%clk 0:02:36]} 15. exf5 {[%clk 0:02:42]}  gxf5 {[%clk 0:02:36]} 16. Nd2 {[%clk 0:02:28]}  Ndf6 {[%clk 0:02:32]} 17. Qe2 {[%clk 0:02:19]}  Be6 {[%clk 0:02:29]} 18. d4 {[%clk 0:01:45]}  e4 {[%clk 0:02:29]} 19. f3 {[%clk 0:01:42]}  d5 {[%clk 0:02:25]} 20. fxe4 {[%clk 0:01:35]}  fxe4 {[%clk 0:02:24]} 21. Rf1 {[%clk 0:01:34]}  Rae8 {[%clk 0:02:15]} 22. a4 {[%clk 0:01:30]}  Rf7 {[%clk 0:02:12]} 23. Ba3 {[%clk 0:01:09]}  Qd7 {[%clk 0:02:11]} 24. Kh2 {[%clk 0:01:07]}  Ne7 {[%clk 0:01:54]} 25. Bxe7 {[%clk 0:00:58]}  Rexe7 {[%clk 0:01:51]} 26. cxd5 {[%clk 0:00:57]}  cxd5 {[%clk 0:01:41]} 27. Rac1 {[%clk 0:00:50]}  Ng8 {[%clk 0:01:39]} 28. Nc2 {[%clk 0:00:19]}  Qd6 {[%clk 0:01:21]} 29. Rxf7 {[%clk 0:00:17]}  Rxf7 {[%clk 0:01:20]} 30. Nf1 {[%clk 0:00:18]}  Bf6 {[%clk 0:01:11]} 31. Nfe3 {[%clk 0:00:18]}  Bh4 {[%clk 0:01:08]} 32. Qe1 {[%clk 0:00:15]}  Rg7 {[%clk 0:01:06]} 33. Kh1 {[%clk 0:00:10]}  Bxg3 {[%clk 0:01:05]} 34. Qe2 {[%clk 0:00:09]}  Bf4 {[%clk 0:01:04]} 35. Rf1 {[%clk 0:00:09]}  Rg3 {[%clk 0:01:00]} 36. b4 {[%clk 0:00:06]}  Bxh3 {[%clk 0:00:57]} 37. Rf2 {[%clk 0:00:03]}  Bxg2+ {[%clk 0:00:51]} 38. Rxg2 {[%clk 0:00:04]}  Qg6 {[%clk 0:00:20]} 39. Kg1 {[%clk 0:00:02]}  Bxe3+ {[%clk 0:00:16]} 40. Nxe3 {[%clk 0:00:00]}  Qg5 {[%clk 0:00:13]} 0-1